Workbook

Sheet 試算シートの使い方
A1: 退職手当試算シートの使用について
H2: R6.8.1 現在
A3: １ 用意するもの
A4: （１） | B4: 履歴書
A5: （２） | B5: 給与明細（最新）
A7: ２ 使用方法
A8: （１） | B8: 入力シートを開きます。
A9: （２） | B9: 入力シートの説明を参考に履歴書等を見ながら該当箇所に入力してください。
A11: ※ 不明な点は、所属の事務職員に確認するか、福利課企画管理班まで御連絡く
A12: ださい。（022-211-3672）
A60: ３ 試算結果の印刷
A62: （１） ５ 調整額まで入力し終わりましたら、印刷シートを開きます。
A75: （２） 試算結果が表示されていますので、印刷してください。
A77: （３） 試算結果が表示されていますので、印刷してください。
A78: （２） 試算結果が表示されていますので、印刷してください。
A79: （１） 試算結果が表示されていますので、印刷してください。
A80: （０） 試算結果が表示されていますので、印刷してください。
A81: （１） 試算結果が表示されていますので、印刷してください。

Sheet 入力シート
B2: 退職手当試算入力シート | AN2: 入力箇所(必須） | BA2: 入力箇所（場合によって）
B4: 退職時のおおよその退職手当額を試算します。 黄色セル、（場合によっては）青色セルに入力してください。
A6: 1 | B6: 試算希望者の氏名を入力してください。
B8: 氏 名
B9: 福 花子
A12: 2 | B12: 退職事由を選んでください。（プルダウンから選択してください。）
B13: 定年扱い | Q13: ※退職事由によって退職手当額が大きく異なります。
Q14: ※退職年月日が６０歳の誕生日以降であれば、定年扱いを選んでください。
A16: 3 | B16: 採用及び退職年月日を入力してください。
B17: また、休職等除算期間がある場合には入力してください。
B19: 採用年月日 | P19: 1989-04-01 | AJ19: 勤続期間 | AX19: =TRUNC(IF(MONTH(P21)<MONTH(P19),(YEAR(P21)-YEAR(P19))*12+MONTH(P21)-MONTH(P19)+1,(YEAR(P21)-YEAR(P19))*12+MONTH(P21)-MONTH(P19)+1)/12) -> 36 | BB19: 年 | BF19: =MOD(IF(MONTH(P21)<MONTH(P19),(YEAR(P21)-YEAR(P19))*12+MONTH(P21)-MONTH(P19)+1,(YEAR(P21)-YEAR(P19))*12+MONTH(P21)-MONTH(P19)+1),12) -> 0 | BJ19: 月 | BO19: a | BQ19: =(YEAR(P21)-YEAR(P19))*12+MONTH(P21)-MONTH(P19)+1 -> 432
B21: 退職年月日 | P21: 2025-03-31
B23: ※ 前歴に他の公務員期間があり、引き続いて採用になった方は、その期間が通算される場合があります。
B24: この場合には、前歴も含めた採用年数を入力してください。
C25: (1) 育児休業
F26: 子の誕生日 | P26: 1992-12-25 | AW26: 除算（１）
F27: 休業期間 | P27: 1993-02-19 | AD27: ～ | AH27: 1994-03-31 | AW27: =IFERROR(ROUNDDOWN(BW30/12,0),0) -> 0 | BB27: 年 | BE27: =IFERROR(MOD(BW30,12),0) -> 4.8 | BK27: 月除算
P29: 子が１歳になる日 | BL29: 月数 | BN29: 割合
F30: =EOMONTH(P30,-1) -> 1993-11-30 | P30: =P26+364 -> 1993-12-24 | AA30: ① | AD30: =IF(P27="","",IF(DAY(P27)=1,P27,IF(DAY(P27)<>1,EOMONTH(P27,0)+1,""))) -> 1993-03-01 | AV30: =IF(AH27>P30,EOMONTH(F30,1),IF(AH27="","",IF(EOMONTH(AH27,0)<>AH27,EOMONTH(AH27,-1),IF(AH27=EOMONTH(AH27,0),AH27,"")))) -> 1993-12-31 | BJ30: =IFERROR(DATEDIF(AD30,AV30,"M")+1,"") -> 10 | BN30: 3 | BS30: =IFERROR(ROUNDDOWN(BJ30/BN30,1),0) -> 3.3 | BW30: =IFERROR(BS30+BS31,"") -> 4.8
AA31: ② | AD31: =IF(AV30<>F30,AV30+1,"") -> 1994-01-01 | AV31: =IF(AH27="","",IF(EOMONTH(AH27,0)<>AH27,EOMONTH(AH27,-1),IF(AH27=EOMONTH(AH27,0),AH27,""))) -> 1994-03-31 | BJ31: =IFERROR(DATEDIF(AD31,AV31,"M")+1,"") -> 3 | BN31: 2 | BS31: =IF(BJ31="",0,(ROUNDDOWN(BJ31/BN31,1))) -> 1.5
C33: (2) 休職、停職、大学院修学休業
F34: 休業種類 | P34: 休職 | AW34: 除算（２）
F35: 休業期間 | P35: 2019-01-02 | AD35: ～ | AH35: 2019-03-31 | AW35: =IFERROR(ROUNDDOWN(BW38/12,0),0) -> 0 | BB35: 年 | BE35: =IFERROR(MOD(BW38,12),0) -> 1 | BK35: 月除算
BL37: 月数 | BN37: 割合
AD38: =IF(P35="","",IF(DAY(P35)=1,P35,IF(DAY(P35)<>1,EOMONTH(P35,0)+1,""))) -> 2019-02-01 | AV38: =IF(AH35="","",IF(EOMONTH(AH35,0)<>AH35,EOMONTH(AH35,-1),IF(AH35=EOMONTH(AH35,0),AH35,""))) -> 2019-03-31 | BJ38: =IFERROR(DATEDIF(AD38,AV38,"M")+1,"") -> 2 | BN38: 2 | BS38: =IFERROR(ROUNDDOWN(BJ38/BN38,1),0) -> 1 | BW38: =IFERROR(BS38+BS39,"") -> 1 | BZ38: ｂ | CA38: =IFERROR(BZ39*12+CB39,0) -> 19.8
BS39: =IF(BJ39="",0,(ROUNDDOWN(BJ39/BN39,1))) -> 0 | BZ39: =IFERROR(AW27+AW35,"")+P44 -> 1 | CA39: 年 | CB39: =IFERROR(BE27+BE35,"")+W44 -> 7.8 | CC39: 月
C42: (3) 上記以外に除算期間がある場合
AF43: 勤続年数は | AW43: =IF(BU44="",0,IF(AND(BU44>=6,BU44<12),1,IFERROR(ROUNDDOWN(BU44/12,0),"1"))) -> 34 | BJ43: 年 | BP43: a-b
F44: さらに除く年月数 | P44: 1 | U44: 年 | W44: 2 | AB44: 月 | BU44: =IF(BQ19="","",IFERROR(BQ19-CA38,"")) -> 412.2
BD45: （１年未満切り捨て）
B47: ※ 除算期間が（１）、（２）以外にある場合は、下記の表を参考に（３）に入力してください。
A59: 4 | B59: 現在の給料表、号俸と、教職調整額、給料の調整額（発令されている場合）を入力します。
B60: 手元にある書類にしたがって、（１）と（２）どちらかに入力してください。
B62: （１）手元にあるものが履歴書の場合
B64: 給料表 | U64: 号俸 | AN64: 給料の調整数
B65: 教育（二） | U65: 3 | Z65: 級 | AC65: 50 | AH65: 号俸
U67: 3 | AC67: .
U68: =IFERROR(給料表計算シート!E12,"") -> 392000
B69: 労務職員（技能職給料表適用職員）の場合は平成２７年３月３１日現在の号俸も入力して下さい。 | U69: Ｈ27.3.31現在号俸 | AN69: Ｈ27.3.31現在仮定月額
R70: ⇒ | Z70: 級 | AH70: 号俸 | AN70: =IF(給料表計算シート!E21="",0,給料表計算シート!E21) -> 0 | BA70: 円
B73: 本俸（給料表上の月額） | U73: 教職調整額 | AN73: 給料の調整額
B74: =IF(U68>AN70,U68,IF(U68>AN70,U68,AN70)) -> 392000 | O74: 円 | U74: =IF(AND(B65="教",U65=4),0, IF(AND(B65="教育（一）",U65=3),7700, IF(AND(B65="教育（二）",U65=3),7500, IF(AND(B65<>"教",ISNUMBER(SEARCH("教",B65)),OR(U65=1,U65=2)),B74*0.04, 0)))) -> 7500 | AH74: 円 | AN74: =IF(AN65="",0,給料表計算シート!F12) -> 0 | BA74: 円 | BG74: =SUM(B74+U74+AN74) -> 399500
A77: ※ | B77: 教育（一）は高校等の教員、教育（二）は小中学校の教員の給料表です。
A78: ※ | B78: 医療職（二）は栄養職員の給料表です。医療職（三）は蔵王自然の家の養護教諭の給料表です。
B93: （２）手元にあるものが給与明細の場合
B95: 給料月額（調整額含） | U95: 教職調整額
O96: 円 | AH96: 円 | BG96: =SUM(B96+U96+AN96) -> 0
A112: 5 | B112: 調整額を算出するため、各該当期間の職名、または給料表および号俸を入力してください。
B113: ※ 退職事由が「自己都合」で勤続期間が１０年未満の場合、調整額は支給されないため、入力不要です。
B114: （１）教職職給料表(一)(二)が適用されている者
B115: 職名 | H115: 該当期間 | Z115: 区分 | AF115: 調整月数 | AL115: 調整額
BY116: 校長 | BZ116: 第５号 | CA116: 54150
B117: 教頭 | H117: =DATE(YEAR($R$117)-(MONTH($R$117)<4),4,1) -> 2024-04-01 | P117: ～ | R117: =P21 -> 2025-03-31 | Z117: =IF(B117="","",VLOOKUP(B117,$BY$116:$CA$120,2,0)) -> 第７号 | AF117: =IF(B117="","",DATEDIF(H117,R117,"M")+1) -> 12 | AL117: =IF(B117="","",VLOOKUP(B117,$BY$116:$CA$120,3,0)*AF117) -> 390000 | BY117: 副校長 | BZ117: 第６号 | CA117: 43350
BY118: 教頭 | BZ118: 第７号 | CA118: 32500
B119: 教頭 | H119: =DATE(YEAR($R$119)-(MONTH($R$119)<4),4,1) -> 2023-04-01 | P119: ～ | R119: =H117-1 -> 2024-03-31 | Z119: =IF(B119="","",VLOOKUP(B119,$BY$116:$CA$120,2,0)) -> 第７号 | AF119: =IF(B119="","",DATEDIF(H119,R119,"M")+1) -> 12 | AL119: =IF(B119="","",VLOOKUP(B119,$BY$116:$CA$120,3,0)*AF119) -> 390000 | BY119: 教諭(特２) | BZ119: 第８号 | CA119: 27100
BY120: 教諭 | BZ120: 第９号 | CA120: 21700
B121: 教頭 | H121: =DATE(YEAR($R$121)-(MONTH($R$121)<4),4,1) -> 2022-04-01 | P121: ～ | R121: =H119-1 -> 2023-03-31 | Z121: =IF(B121="","",VLOOKUP(B121,$BY$116:$CA$120,2,0)) -> 第７号 | AF121: =IF(B121="","",DATEDIF(H121,R121,"M")+1) -> 12 | AL121: =IF(B121="","",VLOOKUP(B121,$BY$116:$CA$120,3,0)*AF121) -> 390000
B123: 教諭 | H123: =DATE(YEAR($R$123)-(MONTH($R$123)<4),4,1) -> 2021-04-01 | P123: ～ | R123: =H121-1 -> 2022-03-31 | Z123: =IF(B123="","",VLOOKUP(B123,$BY$116:$CA$120,2,0)) -> 第９号 | AF123: =IF(B123="","",DATEDIF(H123,R123,"M")+1) -> 12 | AL123: =IF(B123="","",VLOOKUP(B123,$BY$116:$CA$120,3,0)*AF123) -> 260400
B125: 教諭 | H125: =DATE(YEAR($R$125)-(MONTH($R$125)<4),4,1) -> 2020-04-01 | P125: ～ | R125: =H123-1 -> 2021-03-31 | Z125: =IF(B125="","",VLOOKUP(B125,$BY$116:$CA$120,2,0)) -> 第９号 | AF125: =IF(B125="","",DATEDIF(H125,R125,"M")+1) -> 12 | AL125: =IF(B125="","",VLOOKUP(B125,$BY$116:$CA$120,3,0)*AF125) -> 260400 | BA125: （１）合計 | BG125: =SUM( IFERROR(LARGE(AF117:AK128, 1), 0), IFERROR(LARGE(AF117:AK128, 2), 0), IFERROR(LARGE(AF117:AK128, 3), 0), IFERROR(LARGE(AF117:AK128, 4), 0), IFERROR(LARGE(AF117:AK128, 5), 0) ) -> 60 | BM125: 月
B127: 教諭 | H127: =DATE(YEAR($R$127)-(MONTH($R$127)<4),4,1) -> 2019-04-01 | P127: ～ | R127: =H125-1 -> 2020-03-31 | Z127: =IF(B127="","",VLOOKUP(B127,$BY$116:$CA$120,2,0)) -> 第９号 | AF127: =IF(B127="","",DATEDIF(H127,R127,"M")+1) -> 12 | AL127: =IF(B127="","",VLOOKUP(B127,$BY$116:$CA$120,3,0)*AF127) -> 260400 | BD127: =SUM( IFERROR(LARGE(AL117:AS128, 1), 0), IFERROR(LARGE(AL117:AS128, 2), 0), IFERROR(LARGE(AL117:AS128, 3), 0), IFERROR(LARGE(AL117:AS128, 4), 0), IFERROR(LARGE(AL117:AS128, 5), 0) ) -> 1690800 | BM127: 円
B130: （２）上記以外の者
B131: 給料表 | H131: 号俸 （級） | N131: 該当期間 | AF131: 区分 | AL131: 調整月数 | AR131: 調整額
BY132: =B133&H133 ->  | BZ132: 行政７級 | CA132: 第５号 | CB132: 54150
N133: =DATE(YEAR($X$133)-(MONTH($X$133)<4),4,1) -> 2024-04-01 | V133: ～ | X133: =P21 -> 2025-03-31 | AF133: =IF(OR(B133="",H133=""),"",VLOOKUP(BY132,$BZ$132:$CB$155,2,0)) ->  | AL133: =IF(OR(B133="",H133=""),"",DATEDIF(N133,X133,"M")+1) ->  | AR133: =IF(OR(B133="",H133=""),"",VLOOKUP(BY132,$BZ$132:$CB$155,3,0)*AL133) ->  | BY133: =B135&H135 ->  | BZ133: 行政６級 | CA133: 第６号 | CB133: 43350
BY134: =B137&H137 ->  | BZ134: 行政５級 | CA134: 第７号 | CB134: 32500
N135: =DATE(YEAR($X$135)-(MONTH($X$135)<4),4,1) -> 2023-04-01 | V135: ～ | X135: =N133-1 -> 2024-03-31 | AF135: =IF(OR(B135="",H135=""),"",VLOOKUP(BY133,$BZ$132:$CB$155,2,0)) ->  | AL135: =IF(OR(B135="",H135=""),"",DATEDIF(N135,X135,"M")+1) ->  | AR135: =IF(OR(B135="",H135=""),"",VLOOKUP(BY133,$BZ$132:$CB$155,3,0)*AL135) ->  | BY135: =B139&H139 ->  | BZ135: 行政４級 | CA135: 第８号 | CB135: 27100
BY136: =B141&H141 ->  | BZ136: 行政３級 | CA136: 第９号 | CB136: 21700
N137: =DATE(YEAR($X$137)-(MONTH($X$137)<4),4,1) -> 2022-04-01 | V137: ～ | X137: =N135-1 -> 2023-03-31 | AF137: =IF(OR(B137="",H137=""),"",VLOOKUP(BY134,$BZ$132:$CB$155,2,0)) ->  | AL137: =IF(OR(B137="",H137=""),"",DATEDIF(N137,X137,"M")+1) ->  | AR137: =IF(OR(B137="",H137=""),"",VLOOKUP(BY134,$BZ$132:$CB$155,3,0)*AL137) ->  | BY137: =B143&H143 ->  | BZ137: 行政２級 | CA137: 第１０号 | CB137: 0
BY138: =B144&H144 ->  | BZ138: 行政１級 | CA138: 第１０号 | CB138: 0
N139: =DATE(YEAR($X$139)-(MONTH($X$139)<4),4,1) -> 2021-04-01 | V139: ～ | X139: =N137-1 -> 2022-03-31 | AF139: =IF(OR(B139="",H139=""),"",VLOOKUP(BY135,$BZ$132:$CB$155,2,0)) ->  | AL139: =IF(OR(B139="",H139=""),"",DATEDIF(N139,X139,"M")+1) ->  | AR139: =IF(OR(B139="",H139=""),"",VLOOKUP(BY135,$BZ$132:$CB$155,3,0)*AL139) ->  | BZ139: 研究５級 | CA139: 第４号 | CB139: 59550
BZ140: 研究４級 | CA140: 第６号 | CB140: 43350
N141: =DATE(YEAR($X$141)-(MONTH($X$141)<4),4,1) -> 2020-04-01 | V141: ～ | X141: =N139-1 -> 2021-03-31 | AF141: =IF(OR(B141="",H141=""),"",VLOOKUP(BY136,$BZ$132:$CB$155,2,0)) ->  | AL141: =IF(OR(B141="",H141=""),"",DATEDIF(N141,X141,"M")+1) ->  | AR141: =IF(OR(B141="",H141=""),"",VLOOKUP(BY136,$BZ$132:$CB$155,3,0)*AL141) ->  | BA141: （２）合計 | BG141: =SUM( IFERROR(LARGE(AL133:AQ144, 1), 0), IFERROR(LARGE(AL133:AQ144, 2), 0), IFERROR(LARGE(AL133:AQ144, 3), 0), IFERROR(LARGE(AL133:AQ144, 4), 0), IFERROR(LARGE(AL133:AQ144, 5), 0) ) -> 0 | BM141: 月 | BZ141: 研究３級 | CA141: 第８号 | CB141: 27100
BZ142: 研究２級 | CA142: 第９号 | CB142: 21700
N143: =DATE(YEAR($X$143)-(MONTH($X$143)<4),4,1) -> 2019-04-01 | V143: ～ | X143: =N141-1 -> 2020-03-31 | AF143: =IF(OR(B143="",H143=""),"",VLOOKUP(BY137,$BZ$132:$CB$155,2,0)) ->  | AL143: =IF(OR(B143="",H143=""),"",DATEDIF(N143,X143,"M")+1) ->  | AR143: =IF(OR(B143="",H143=""),"",VLOOKUP(BY137,$BZ$132:$CB$155,3,0)*AL143) ->  | BD143: =SUM( IFERROR(LARGE(AR133:AY144, 1), 0), IFERROR(LARGE(AR133:AY144, 2), 0), IFERROR(LARGE(AR133:AY144, 3), 0), IFERROR(LARGE(AR133:AY144, 4), 0), IFERROR(LARGE(AR133:AY144, 5), 0) ) -> 0 | BM143: 円 | BZ143: 研究１級 | CA143: 第１０号 | CB143: 0
BZ144: 医療（二）７級 | CA144: 第５号 | CB144: 54150
BZ145: 医療（二）６級 | CA145: 第６号 | CB145: 43350
AF146: 調整額合計は | AW146: =(IF(B13="自己都合",IF(AW43<=9,0,IF(AND(AW43>=10,AW43<=24),BD127/2,BD127)),BD127))+IF(B13="自己都合",IF(AW43<=9,0,IF(AND(AW43>=10,AW43<=24),BD143/2,BD143)),BD143) -> 1690800 | BJ146: 円 | BZ146: 医療（二）５級 | CA146: 第８号 | CB146: 27100
BZ147: 医療（二）４級 | CA147: 第９号 | CB147: 21700
AU148: （調整月数計 | BD148: =BG125+BG141 -> 60 | BH148: 月） | BZ148: 医療（二）３級 | CA148: 第９号 | CB148: 21700
AF149: ※調整額合計は、高額な方から60月分の合計 | BO149: # 使用例 | BZ149: 医療（二）２級 | CA149: 第１０号 | CB149: 0
AF150: ※自己都合退職者のうち、 | BZ150: 医療（二）１級 | CA150: 第１０号 | CB150: 0
AH151: 勤続年数が10～24年：（１）又は（２）の2分の1の額 | BZ151: 技能５級 | CA151: 第８号 | CB151: 27100
AH152: 勤続年数が9年以下：調整額は不支給 | BO152: result = adjust_bd126(15, 100) # 15は10～24の範囲内なのでBD126の値100を2分の1にして50を返す | BZ152: 技能４級 | CA152: 第９号 | CB152: 21700
BO153: print(result) # 出力: 50 | BZ153: 技能３級 | CA153: 第９号 | CB153: 21700
BZ154: 技能２級 | CA154: 第１０号 | CB154: 0
BO155: result = adjust_bd126(25, 100) # 25は範囲外なのでBD126の値100をそのまま返す | BZ155: 技能１級 | CA155: 第１０号 | CB155: 0
BO156: print(result) # 出力: 100

Sheet 印刷シート
B2: 退職手当計算内訳書 （試算） | J2: 氏名： | L2: =IF(入力シート!B9="","",入力シート!B9) -> 福 花子 | O2: =TODAY() -> 2024-08-02 | T2: 現在 | AB2: =IF(入力シート!B13="自己都合","自己都合",IF(入力シート!B13="定年扱い","定年扱い")) -> 定年扱い
J3: 事由： | L3: =$AB$2&"退職" -> 定年扱い退職
B4: 退 | C4: 給 | F4: =入力シート!B65 -> 教育（二） | J4: 勤 | K4: 在職年数 | L4: =入力シート!P19 -> 1989-04-01 | P4: から
B5: 職 | C5: 料 | D5: 級号俸 | F5: =IF(入力シート!U65="","",IF(F8=入力シート!AN70,入力シート!U70,入力シート!U65)) -> 3 | G5: 級 | H5: =IF(入力シート!AC65="","",IF(F8=入力シート!AN70,入力シート!AC70,入力シート!AC65)) -> 50 | I5: 号俸 | J5: 続 | L5: =入力シート!P21 -> 2025-03-31 | P5: まで | R5: =入力シート!$AX$19 -> 36 | S5: 年 | T5: =入力シート!$BF$19 -> 0 | U5: 月
B6: 時 | C6: 月 | J6: 年 | L6: 計(ｱ) | R6: =R5 -> 36 | S6: 年 | T6: =T5 -> 0 | U6: 月 | W6: =R6*12+T6 -> 432
B7: の | C7: 額 | J7: 数 | K7: 除算年数 | L7: =IF(AND(入力シート!$AW$27=0,入力シート!$BE$27=0),"",入力シート!AD30) -> 1993-03-01 | M7: から | P7: =IF(L7="","","育休") -> 育休
B8: 給 | D8: 給料(A) | F8: =入力シート!$B$74+入力シート!$B$96 -> 392000 | I8: 円 | L8: =IF(AND(入力シート!$AW$27=0,入力シート!$BE$27=0),"",入力シート!AV31) -> 1994-03-31 | M8: まで | O8: =IF(P7="","","(1)") -> (1) | R8: =IF(P7="","",入力シート!AW27) -> 0 | S8: 年 | T8: =IF(P7="","",入力シート!BE27) -> 4.8 | U8: 月
B9: 与 | L9: =IF(AND(入力シート!$AW$35=0,入力シート!$BE$35=0),"",入力シート!AD38) -> 2019-02-01 | M9: から | P9: =IF(L9="","",入力シート!$P$34) -> 休職
B10: 等 | L10: =IF(AND(入力シート!AW35,入力シート!BE35=0),"",入力シート!AV38) -> 2019-03-31 | M10: まで | O10: =IF(P9="","","(2)") -> (2) | R10: =IF(P9="","",入力シート!AW35) -> 0 | S10: 年 | T10: =IF(P9="","",入力シート!BE35) -> 1 | U10: 月
L11: =IF(AND(入力シート!P44=0,入力シート!W44=0),"","さらに除く年月数") -> さらに除く年月数 | P11: =IF(L11="","","その他") -> その他 | W11: =SUM(R8:R15) -> 1
D12: 教職調整額(B) | F12: =入力シート!$U$74+入力シート!$U$96 -> 7500 | I12: 円 | O12: =IF(P11="","","(3)") -> (3) | R12: =IF(P11="","",入力シート!P44) -> 1 | S12: 年 | T12: =IF(P11="","",入力シート!W44) -> 2 | U12: 月 | W12: =ROUNDDOWN((W15)/12,0) -> 0
P13: =IF(L13="","",入力シート!#REF!) ->  | W13: =MOD(W15,12) -> 7.8
O14: =IF(P13="","","(4)") ->  | R14: =IF(P13="","",入力シート!#REF!) ->  | S14: 年 | T14: =IF(P13="","",入力シート!#REF!) ->  | U14: 月
D15: 給料の調整額(C) | F15: =入力シート!AN74 -> 0 | I15: 円 | S15: =IF(O15="","","年") ->  | U15: =IF(O15="","","月") ->  | W15: =SUM(T8:T15) -> 7.8
L16: 計(ｲ) | R16: =+W11+W12 -> 1 | S16: 年 | T16: =W13 -> 7.8 | U16: 月
D18: 計(D) | F18: =F8+F12+F15 -> 399500 | I18: 円 | K18: 合計(ｳ) =(ｱ)-(ｲ) | P18: =IF(W20>0,W20,0) -> 34 | Q18: 年 | R18: =IF(X20>0,X20,0) -> 4.2 | S18: 月( | T18: =IF(AND(P18<=0,R18>=6),P18+1,P18) -> 34 | U18: 年) | W18: =W6-(W13+(W11+W12)*12) -> 412.2
J19: (C)
J20: の | K20: 定額分 | N20: 調整数 | W20: =ROUNDDOWN(W18/12,0) -> 34 | X20: =W18-W20*12 -> 4.2
C21: 合計(基本給月額)(E) | F21: =F18 -> 399500 | I21: 円 | J21: 算 | M21: × | AB21: 事由 | AD21: 年数
J22: 式 | AB22: =入力シート!B13 -> 定年扱い | AC22: =IF(AB22="自己都合",2,1) -> 1 | AD22: =T18 -> 34 | AE22: =IF(AC22=1,"",IF(AND(AC22=2,AD22>19),2,1)) ->  | AF22: =IF(AC22=2,"",IF(AND(AD22>=20,AD22<=35),6,IF(AD22>35,7,""))) -> 6
B23: 退 | F23: 職員の退職手当に関する条例第 | M23: =VLOOKUP(AE$25,X$23:Z$27,2) -> 5 | N23: 条 | O23: 第 | P23: =VLOOKUP($AE$25,$X$23:$Z$27,3) -> 1 | Q23: 項 | X23: 1 | Y23: 3 | Z23: 2 | AE23: =IF(AC22=2,"",IF(AND(AC22=1,AD22<12),3,IF(AND(AC22=1,AD22>=11,AD22<25),4,5))) -> 5 | AG23: 1 | AH23: 自己都合 | AI23: ～１９
B24: 職 | C24: 適用条項 | F24: 昭和 | G24: =IFERROR(VLOOKUP($AF$22,$X$28:$Z$29,2),"") -> 本則 | H24: 年条例第 | J24: =IFERROR(VLOOKUP($AF$22,$X$28:$AA$29,3),"") -> 附則 | L24: 号附則第 | M24: =IFERROR(VLOOKUP($AF$22,$X$28:$AA$29,4),"") -> 21 | O24: 項 | X24: 2 | Y24: 3 | Z24: 1 | AG24: 2 | AH24: 自己都合 | AI24: ２０～
B25: 手 | F25: 昭和 | G25: =IF(ISERROR(LOOKUP(#REF!,#REF!,#REF!)),"",LOOKUP(#REF!,#REF!,#REF!)) ->  | H25: 年条例第 | J25: =IF(ISERROR(LOOKUP(#REF!,#REF!,#REF!)),"",LOOKUP(#REF!,#REF!,#REF!)) ->  | L25: 号附則第 | N25: =IF(ISERROR(LOOKUP(#REF!,#REF!,#REF!)),"",LOOKUP(#REF!,#REF!,#REF!)) ->  | O25: 項 | X25: 3 | Y25: 3 | Z25: 1 | AE25: =SUM(AE22:AE24) -> 5 | AG25: 3 | AH25: 定年 | AI25: ～１１
B26: 当 | F26: 給料月額(EまたはF) | J26: (ｳ)の支給割合 | N26: 調整額 | U26: 退職手当額 | X26: 4 | Y26: 4 | Z26: 1 | AG26: 4 | AH26: 定年 | AI26: １１～２４
C27: 退職手当額の計算 | F27: =F21 -> 399500 | I27: 円 | J27: × | L27: =IFERROR(IF(計算シート!K6="","",計算シート!K6),0) -> 46.83015 | M27: ＋ | N27: =O28 -> 1690800 | Q27: ＝ | R27: =TRUNC(F27*L27)+N27 -> 20399444 | U27: 円 | X27: 5 | Y27: 5 | Z27: 1 | AG27: 5 | AH27: 定年 | AI27: ２５～
F28: ･ | G28: 調整額 | J28: 合計 | L28: =入力シート!$BD$148 -> 60 | M28: 月 | O28: =入力シート!$AW$146 -> 1690800 | R28: 円 | S28: =IF(ISERROR(#REF!*#REF!),"","(月額 "&#REF!&"円)") ->  | X28: 6 | Y28: 本則 | Z28: 附則 | AA28: 21 | AG28: 6 | AH28: 定年等 | AI28: ２０～３５
X29: 7 | Y29: 本則 | Z29: 附則 | AA29: 23 | AG29: 7 | AH29: 定年等 | AI29: ３６～
S31: =IF(ISERROR(#REF!*#REF!),"","(月額 "&#REF!&"円)") -> 
B32: ※退職手当額（概算） | F32: =R27 -> 20399444 | I32: 円
J33: ※ 退職時のおおよその金額です。
K34: 正確な退職手当額は経過措置や昇給等を考慮した上で
B35: 控 | C35: 徴 | D35: ①所得税 | I35: 円 | K35: 決定されることとなりますので、参考程度にお考えくださ
B36: 除 | C36: 収 | D36: ②市町村民税 | I36: 円 | K36: い。
B37: 額 | C37: 税 | D37: ③県民税 | I37: 円 | K37: また、この試算書は今後の退職手当額を保障するも
C38: 額 | D38: 計 | I38: 円 | K38: のではありません。
C39: ④給与に係る住民税 | K39: （今後の条例改正等により実際の退職手当額が試算額
C40: 一括徴収税額 | I40: 円 | K40: を下回ることがあります。）
C41: ⑤共済組合貸付償還金 | I41: 円
I42: 円 | K42: なお、実際は、左記①～⑤を控除した残額が支給額と
I43: 円 | K43: なります。
C44: =IF(OR(F44=0,F44=""),"","その他(法務局供託金)") ->  | I44: 円
C45: 合計 | I45: 円 | K45: 入力シートに入力した内容に誤りがある場合は、正しく
B46: 現金支給額 | I46: 円 | K46: 計算されません。
B47: 住民税納 | E47: 退職所得分
B48: 入市町村 | E48: 一括住民税

Sheet 【参考】調整額区分表
A1: 退職手当の調整額に関する区分表
A3: イ １９年３月３１日までの適用区分
A4: 区分 | B4: 第１号 | C4: 第２号 | D4: 第３号 | E4: 第４号 | F4: 第５号 | G4: 第６号 | H4: 第７号 | I4: 第８号 | J4: 第９号 | K4: 第１０号
A5: 調整月額 | B5: 78750 | C5: 70400 | D5: 65000 | E5: 59550 | F5: 54150 | G5: 43350 | H5: 32500 | I5: 27100 | J5: 21700 | K5: 0
A6: 行政職 | D6: １１級 期20% | E6: １０級 期20% | F6: ９級 期15% | G6: ８級 期15% | H6: ７級 期10% | I6: ６級 期10% | J6: ５級・４級 期5% | K6: ３級・２級・１級
A7: 教育職(二) | E7: ４級 期20% | F7: ４級 管16%・管14% 期15% | G7: ４級 期15% | H7: ３級 期10% ２級期10%のうち注８の者 | I7: ２級 期10% | J7: ２級・１級 期5% | K7: ２級・１級
A8: 教育職(三) | E8: ４級 期20% | F8: ４級 管16%・管14% 期15% | G8: ４級 期15% | H8: ３級 期10% ２級期10%のうち注８の者 | I8: ２級 期10% | J8: ２級 期5% | K8: ２級・１級
A9: 研究職 | D9: ５級 管25% 期20% | E9: ５級 期20% | F9: ４級 管18% 期15% | G9: ４級 期15% ３級のうち注４の職 | H9: ３級のうち注５の職 | I9: ３級 期10% | J9: ２級 期5% | K9: ２級・１級
A10: 医療職(二) 医療職(三) | F10: ７級 期15% | G10: ６級 期15% | H10: ５級のうち注６の職 | I10: ５級 期10% | J10: ４級 期5% ３級 期5% | K10: 3級・2級・1級
A11: 技能職 | I11: ５級 期10% | J11: ４級 期5% ３級 期5% ２級 期5% | K11: ４級・３級・ ２級・１級
A13: ロ １９年４月１日から21年３月31日までの適用区分
A14: 区分 | B14: 第１号 | C14: 第２号 | D14: 第３号 | E14: 第４号 | F14: 第５号 | G14: 第６号 | H14: 第７号 | I14: 第８号 | J14: 第９号 | K14: 第１０号
A15: 調整月額 | B15: 78750 | C15: 70400 | D15: 65000 | E15: 59550 | F15: 54150 | G15: 43350 | H15: 32500 | I15: 27100 | J15: 21700 | K15: 0
A16: 行政職 | C16: １０級 期20% | D16: ９級 期20% | E16: ８級 期20% | F16: ７級 期15% | G16: ６級 期15% | H16: ５級 期10% | I16: ４級 期10% | J16: ３級 期5% | K16: ２級・１級
A17: 教育職(二) | E17: ４級 期20% | F17: ４級 管６種 期15% | G17: ４級 期15% | H17: ３級 期10% ２級期10%のうち注８の者 | I17: ２級 期10% | J17: ２級・１級 期5% | K17: ２級・１級
A18: 教育職(三) | E18: ４級 期20% | F18: ４級 管６種 期15% | G18: ４級 期15% | H18: ３級 期10% ２級期10%のうち注８の者 | I18: ２級 期10% | J18: ２級 期5% | K18: ２級・１級
A19: 研究職 | D19: ５級 管１種 期20% | E19: ５級 期20% | F19: ４級 管４種 期15% | G19: ４級 期15% ３級のうち注４の職 | H19: ３級のうち注５の職 | I19: ３級 期10% | J19: ２級 期5% | K19: ２級・１級
A20: 医療職(二) 医療職(三) | F20: ７級 期15% | G20: ６級 期15% | H20: ５級のうち注７の職 | I20: ５級 期10% | J20: ４級 期5% ３級 期5% | K20: 3級・2級・1級
A21: 技能職 | I21: ４級 期10% | J21: ３級 期5% ２級 期5% | K21: ３級・２級・１級
A23: ハ ２１年４月１日からの適用区分（技能職については平成２７年３月３１日までの適用区分）
A24: 区分 | B24: 第１号 | C24: 第２号 | D24: 第３号 | E24: 第４号 | F24: 第５号 | G24: 第６号 | H24: 第７号 | I24: 第８号 | J24: 第９号 | K24: 第１０号
A25: 調整月額 | B25: 78750 | C25: 70400 | D25: 65000 | E25: 59550 | F25: 54150 | G25: 43350 | H25: 32500 | I25: 27100 | J25: 21700 | K25: 0
A26: 行政職 | C26: １０級 期20% | D26: ９級 期20% | E26: ８級 期20% | F26: ７級 期15% | G26: ６級 期15% | H26: ５級 期10% | I26: ４級 期10% | J26: ３級 期5% | K26: ２級・１級
A27: 教育職(一) | E27: ４級 期20% | F27: ４級 管６種 期15% | G27: ４級期15% ３級管６種 | H27: ３級 期10% ２級期10%のうち注８の者 特２級のうち特２級在職４年以上又は注８の者 | I27: ２級期10% 特２級 | J27: ２級・１級 期5% | K27: ２級・１級
A28: 教育職(二) | E28: ４級 期20% | F28: ４級 管６種 期15% | G28: ４級期15% ３級管６種 | H28: ３級 期10% ２級期10%のうち注８の者 特２級のうち特２級在職４年以上又は注８の者 | I28: ２級期10% 特２級 | J28: ２級 期5% | K28: ２級・１級
A29: 研究職 | D29: ５級 管１種 期20% | E29: ５級 期20% | F29: ４級 管４種 期15% | G29: ４級 期15% ３級のうち注４の職 | H29: ３級のうち注５の職 | I29: ３級 期10% | J29: ２級 期5% | K29: ２級・１級
A30: 医療職(二) 医療職(三) | F30: ７級 期15% | G30: ６級 期15% | H30: ５級のうち注７の職 | I30: ５級 期10% | J30: ４級 期5% ３級 期5% | K30: 3級・2級・1級
A31: 技能職 | I31: ４級 期10% | J31: ３級 期5% ２級 期5% | K31: ３級・２級・１級
A33: ニ ２７年４月１日からの適用区分
A34: 区分 | B34: 第１号 | C34: 第２号 | D34: 第３号 | E34: 第４号 | F34: 第５号 | G34: 第６号 | H34: 第７号 | I34: 第８号 | J34: 第９号 | K34: 第１０号
A35: 調整月額 | B35: 78750 | C35: 70400 | D35: 65000 | E35: 59550 | F35: 54150 | G35: 43350 | H35: 32500 | I35: 27100 | J35: 21700 | K35: 0
A36: 技能職 | I36: ５級 期10% | J36: ４級 期5% ３級 期5% | K36: ４級・３級・ ２級・１級
A38: 注１ 期 ％ ： 期末手当等の役職段階別加算割合 | G38: 注８ 勤続期間が博士課程修了にあっては30年以上，修士課程修了に
A39: 注２ 管 ％ ： 管理職手当の支給割合 | G39: あっては33年以上，大学卒にあっては35年以上，短大卒にあっては
A40: 注３ 管 種 ： 管理職手当の支給額により区分 | G40: 37年以上，高校卒にあっては39年以上であった者
A41: 注４ 技術副参事，総括研究員
A42: 注５ 技術補佐，技術次長又は上席主任研究員
A43: 注６ 技術補佐，技術次長又は上席技術主幹
A44: 注７ 技術補佐，技術次長

Sheet 特に級読替表 (hidden)
B1: 行 政 職 給 料 表
C4: 職務 | D4: １ 級 | F4: ２ 級 | H4: ３ 級 | J4: ４ 級 | L4: ５ 級 | N4: ６ 級 | P4: ７ 級 | R4: ８ 級 | T4: ９ 級
C5: の級
B6: 特 に | D6: 読 替 号 俸
E7: 号俸 | G7: 号俸 | I7: 号俸 | K7: 号俸 | M7: 号俸 | O7: 号俸 | Q7: 号俸 | S7: 号俸 | U7: 号俸
B8: 特(1) | D8: 189000 | E8: 17 | F8: 245400 | G8: 20 | H8: 317400 | I8: 33 | J8: 364700 | K8: 29 | L8: 382200 | M8: 27 | N8: 417900 | O8: 25 | P8: 428400 | Q8: 23 | R8: 452300 | S8: 22 | T8: 488400 | U8: 19
B9: 特(2) | D9: 190600 | E9: =E8+1 -> 18 | F9: 247200 | G9: =G8+1 -> 21 | H9: 319200 | I9: =I8+1 -> 34 | J9: 366900 | K9: =K8+1 -> 30 | L9: 384800 | M9: =M8+1 -> 28 | N9: 421300 | O9: =O8+1 -> 26 | P9: 431900 | Q9: =Q8+1 -> 24 | R9: 455900 | S9: =S8+1 -> 23 | T9: 492500 | U9: =U8+1 -> 20
B10: 特(3) | D10: 192200 | E10: =E9+1 -> 19 | F10: 249000 | G10: =G9+1 -> 22 | H10: 321000 | I10: =I9+1 -> 35 | J10: 369100 | K10: =K9+1 -> 31 | L10: 387400 | M10: =M9+1 -> 29 | N10: 424700 | O10: =O9+1 -> 27 | P10: 435400 | Q10: =Q9+1 -> 25 | R10: 459500 | S10: =S9+1 -> 24 | T10: 496600 | U10: =U9+1 -> 21
B11: 特(4) | D11: 193800 | E11: =E10+1 -> 20 | F11: 250800 | G11: =G10+1 -> 23 | H11: 322800 | I11: =I10+1 -> 36 | J11: 371300 | K11: =K10+1 -> 32 | L11: 390000 | M11: =M10+1 -> 30 | N11: 428100 | O11: =O10+1 -> 28 | P11: 438900 | Q11: =Q10+1 -> 26 | R11: 463100 | S11: =S10+1 -> 25 | T11: 500700 | U11: =U10+1 -> 22
B12: 特(5) | D12: 195400 | E12: =E11+1 -> 21 | F12: 252600 | G12: =G11+1 -> 24 | H12: 324600 | I12: =I11+1 -> 37 | J12: 373500 | K12: =K11+1 -> 33 | L12: 392600 | M12: =M11+1 -> 31 | N12: 431500 | O12: =O11+1 -> 29 | P12: 442400 | Q12: =Q11+1 -> 27 | R12: 466700 | S12: =S11+1 -> 26 | T12: 504800 | U12: =U11+1 -> 23
B15: 教 育 職 給 料 表（二）県立 | N15: 教 育 職 給 料 表（三）小中
C18: 職務 | D18: １ 級 | F18: ２ 級 | H18: ３ 級 | J18: ４ 級 | N18: １ 級 | P18: ２ 級 | R18: ３ 級 | T18: ４ 級
C19: の級
B20: 特 に | D20: 読 替 号 俸 | N20: 読 替 号 俸
E21: 号俸 | G21: 号俸 | I21: 号俸 | K21: 号俸 | O21: 号俸 | Q21: 号俸 | S21: 号俸 | U21: 号俸
B22: 特(1) | D22: 361600 | E22: 41 | F22: 467300 | G22: 38 | H22: 505900 | I22: 24 | J22: 527900 | K22: 16 | N22: 315200 | O22: 34 | P22: 451900 | Q22: 41 | R22: 473000 | S22: 27 | T22: 500800 | U22: 16
B23: 特(2) | D23: 363600 | E23: =E22+1 -> 42 | F23: 470100 | G23: =G22+1 -> 39 | H23: 509900 | I23: =I22+1 -> 25 | J23: 532300 | K23: =K22+1 -> 17 | N23: 316900 | O23: =O22+1 -> 35 | P23: 454300 | Q23: =Q22+1 -> 42 | R23: 475800 | S23: =S22+1 -> 28 | T23: 504700 | U23: =U22+1 -> 17
B24: 特(3) | D24: 365600 | E24: =E23+1 -> 43 | F24: 472900 | G24: =G23+1 -> 40 | H24: 513900 | I24: =I23+1 -> 26 | J24: 536700 | K24: =K23+1 -> 18 | N24: 318600 | O24: =O23+1 -> 36 | P24: 456700 | Q24: =Q23+1 -> 43 | R24: 478600 | S24: =S23+1 -> 29 | T24: 508600 | U24: =U23+1 -> 18
B25: 特(4) | D25: 367600 | E25: =E24+1 -> 44 | F25: 475700 | G25: =G24+1 -> 41 | H25: 517900 | I25: =I24+1 -> 27 | J25: 541100 | K25: =K24+1 -> 19 | N25: 320300 | O25: =O24+1 -> 37 | P25: 459100 | Q25: =Q24+1 -> 44 | R25: 481400 | S25: =S24+1 -> 30 | T25: 512500 | U25: =U24+1 -> 19
B26: 特(5) | D26: 369600 | E26: =E25+1 -> 45 | F26: 478500 | G26: =G25+1 -> 42 | H26: 521900 | I26: =I25+1 -> 28 | J26: 545500 | K26: =K25+1 -> 20 | N26: 322000 | O26: =O25+1 -> 38 | P26: 461500 | Q26: =Q25+1 -> 45 | R26: 484200 | S26: =S25+1 -> 31 | T26: 516400 | U26: =U25+1 -> 20
B29: 医 療 職 給 料 表 （二） 栄養職
C31: 職務 | D31: １ 級 | F31: ２ 級 | H31: ３ 級 | J31: ４ 級 | L31: ５ 級 | N31: ６ 級 | P31: ７ 級 | S31: 履歴書に、
C32: の級 | S32: 「特に○○○○○円」と記載が
B33: 特 に | D33: 読 替 号 俸 | S33: ある場合は「特に級」発令者
E34: 号俸 | G34: 号俸 | I34: 号俸 | K34: 号俸 | M34: 号俸 | O34: 号俸 | Q34: 号俸 | S34: です。
B35: 特(1) | D35: 241900 | E35: 24 | F35: 303000 | G35: 29 | H35: 367700 | I35: 31 | J35: 386100 | K35: 28 | L35: 424100 | M35: 24 | N35: 452300 | O35: 22 | P35: 488400 | Q35: 19 | S35: その場合は、履歴書にある金額
B36: 特(2) | D36: 243600 | E36: =E35+1 -> 25 | F36: 304700 | G36: =G35+1 -> 30 | H36: 369900 | I36: =I35+1 -> 32 | J36: 388700 | K36: =K35+1 -> 29 | L36: 427500 | M36: =M35+1 -> 25 | N36: 455900 | O36: =O35+1 -> 23 | P36: 492500 | Q36: =Q35+1 -> 20 | S36: を参考に、読替号俸を、
B37: 特(3) | D37: 245300 | E37: =E36+1 -> 26 | F37: 306400 | G37: =G36+1 -> 31 | H37: 372100 | I37: =I36+1 -> 33 | J37: 391300 | K37: =K36+1 -> 30 | L37: 430900 | M37: =M36+1 -> 26 | N37: 459500 | O37: =O36+1 -> 24 | P37: 496600 | Q37: =Q36+1 -> 21 | S37: 入力シートの５の号俸欄に入力
B38: 特(4) | D38: 247000 | E38: =E37+1 -> 27 | F38: 308100 | G38: =G37+1 -> 32 | H38: 374300 | I38: =I37+1 -> 34 | J38: 393900 | K38: =K37+1 -> 31 | L38: 434300 | M38: =M37+1 -> 27 | N38: 463100 | O38: =O37+1 -> 25 | P38: 500700 | Q38: =Q37+1 -> 22 | S38: してください。
B39: 特(5) | D39: 248700 | E39: =E38+1 -> 28 | F39: 309800 | G39: =G38+1 -> 33 | H39: 376500 | I39: =I38+1 -> 35 | J39: 396500 | K39: =K38+1 -> 32 | L39: 437700 | M39: =M38+1 -> 28 | N39: 466700 | O39: =O38+1 -> 26 | P39: 504800 | Q39: =Q38+1 -> 23
B42: 研 究 職 給 料 表 | N42: 例
C45: 職務 | D45: １ 級 | F45: ２ 級 | H45: ３ 級 | J45: ４ 級 | L45: ５ 級
C46: の級
B47: 特 に | D47: 読 替 号 俸
E48: 号俸 | G48: 号俸 | I48: 号俸 | K48: 号俸 | M48: 号俸
B49: 特(1) | D49: 307000 | E49: 33 | F49: 371000 | G49: 30 | H49: 439200 | I49: 26 | J49: 488200 | K49: 24 | L49: 578800 | M49: 24 | O49: ①まず、H19.4.1以前の給与の最終発令を確認します。
B50: 特(2) | D50: 308900 | E50: =E49+1 -> 34 | F50: 373700 | G50: =G49+1 -> 31 | H50: 442500 | I50: =I49+1 -> 27 | J50: 492000 | K50: =K49+1 -> 25 | L50: 582800 | M50: =M49+1 -> 25 | O50: ②もし特に級が発令されていた場合は、
B51: 特(3) | D51: 310800 | E51: =E50+1 -> 35 | F51: 376400 | G51: =G50+1 -> 32 | H51: 445800 | I51: =I50+1 -> 28 | J51: 495800 | K51: =K50+1 -> 26 | L51: 586800 | M51: =M50+1 -> 26 | O51: 給料表と金額をたよりに読替号俸を探してください。
B52: 特(4) | D52: 312700 | E52: =E51+1 -> 36 | F52: 379100 | G52: =G51+1 -> 33 | H52: 449100 | I52: =I51+1 -> 29 | J52: 499600 | K52: =K51+1 -> 27 | L52: 590800 | M52: =M51+1 -> 27
B53: 特(5) | D53: 314600 | E53: =E52+1 -> 37 | F53: 381800 | G53: =G52+1 -> 34 | H53: 452400 | I53: =I52+1 -> 30 | J53: 503400 | K53: =K52+1 -> 28 | L53: 594800 | M53: =M52+1 -> 28
B56: 技 能 職 等 給 料 表
C59: 職務 | D59: １ 級 | F59: ２ 級 | H59: ３ 級 | J59: ４ 級 | L59: ５ 級
C60: の級
B61: 特 に | D61: 読 替 号 俸 | O61: ③例の場合は、教育職給料表（二）の
E62: 号俸 | G62: 号俸 | I62: 号俸 | K62: 号俸 | M62: 号俸 | O62: ２級と、金額467,300円の交差するところをみます。
B63: 特(1) | D63: 308000 | E63: 45 | F63: 317400 | G63: 34 | H63: 364700 | I63: 32 | J63: 382200 | K63: 29 | L63: 417900 | M63: 27 | O63: 交点の「３８号俸」がこの方の読替号俸となります。
B64: 特(2) | D64: 309800 | E64: =E63+1 -> 46 | F64: 319200 | G64: =G63+1 -> 35 | H64: 366900 | I64: =I63+1 -> 33 | J64: 384800 | K64: =K63+1 -> 30 | L64: 421300 | M64: =M63+1 -> 28
B65: 特(3) | D65: 311600 | E65: =E64+1 -> 47 | F65: 321000 | G65: =G64+1 -> 36 | H65: 369100 | I65: =I64+1 -> 34 | J65: 387400 | K65: =K64+1 -> 31 | L65: 424700 | M65: =M64+1 -> 29 | O65: 入力シートの５、H19.3.31現在の号俸欄に「２級３８号俸」と入力
B66: 特(4) | D66: 313400 | E66: =E65+1 -> 48 | F66: 322800 | G66: =G65+1 -> 37 | H66: 371300 | I66: =I65+1 -> 35 | J66: 390000 | K66: =K65+1 -> 32 | L66: 428100 | M66: =M65+1 -> 30 | O66: してください。467,300円と表示されるはずです。 | W66: →R5年度以降、H19.3.31との比較はしていないので、非表示とする。
B67: 特(5) | D67: 315200 | E67: =E66+1 -> 49 | F67: 324600 | G67: =G66+1 -> 38 | H67: 373500 | I67: =I66+1 -> 36 | J67: 392600 | K67: =K66+1 -> 33 | L67: 431500 | M67: =M66+1 -> 31

Sheet 給料表計算シート (hidden)
A1: １ 現在の給料表
E3: 給料表 | F3: 調整額
A4: 行政 | B4: =IF(入力シート!$B$65="行政",入力シート!$B$65,"") ->  | C4: =IF(B4="","",入力シート!$U$65) ->  | D4: =IF(B4="","",入力シート!$AC$65) ->  | E4: =IF(B4="","",VLOOKUP($D$16,給料表!$B$2:$C$3550,2,0)) ->  | F4: =IF(B4="","",VLOOKUP($D$17,給料表!$F$2:$G$3550,2,0)) ->  | G4: =IF(B4="","",1) -> 
A5: 教育（一） | B5: =IF(入力シート!$B$65="教育（一）",入力シート!$B$65,"") ->  | C5: =IF(B5="","",入力シート!$U$65) ->  | D5: =IF(B5="","",入力シート!$AC$65) ->  | E5: =IF(B5="","",VLOOKUP($D$16,給料表!$B$2:$C$3550,2,0)) ->  | F5: =IF(B5="","",VLOOKUP($D$17,給料表!$F$2:$G$3550,2,0)) ->  | G5: =IF(B5="","",4) -> 
A6: 教育（二） | B6: =IF(入力シート!$B$65="教育（二）",入力シート!$B$65,"") -> 教育（二） | C6: =IF(B6="","",入力シート!$U$65) -> 3 | D6: =IF(B6="","",入力シート!$AC$65) -> 50 | E6: =IF(B6="","",VLOOKUP($D$16,給料表!$B$2:$C$3550,2,0)) -> 392000 | F6: =IF(B6="","",VLOOKUP($D$17,給料表!$F$2:$G$3550,2,0)) -> 12000 | G6: =IF(B6="","",5) -> 5
A7: 研究 | B7: =IF(入力シート!$B$65="研究",入力シート!$B$65,"") ->  | C7: =IF(B7="","",入力シート!$U$65) ->  | D7: =IF(B7="","",入力シート!$AC$65) ->  | E7: =IF(B7="","",VLOOKUP($D$16,給料表!$B$2:$C$3550,2,0)) ->  | F7: =IF(B7="","",VLOOKUP($D$17,給料表!$F$2:$G$3550,2,0)) ->  | G7: =IF(B7="","",6) -> 
A8: 技能 | B8: =IF(入力シート!$B$65="技能",入力シート!$B$65,"") ->  | C8: =IF(B8="","",入力シート!$U$65) ->  | D8: =IF(B8="","",入力シート!$AC$65) ->  | E8: =IF(B8="","",VLOOKUP($D$16,給料表!$B$2:$C$3550,2,0)) ->  | F8: =IF(B8="","",VLOOKUP($D$17,給料表!$F$2:$G$3550,2,0)) ->  | G8: =IF(B8="","",10) -> 
A9: 医療（二） | B9: =IF(入力シート!$B$65="医療（二）",入力シート!$B$65,"") ->  | C9: =IF(B9="","",入力シート!$U$65) ->  | D9: =IF(B9="","",入力シート!$AC$65) ->  | E9: =IF(B9="","",VLOOKUP($D$16,給料表!$B$2:$C$3550,2,0)) ->  | F9: =IF(B9="","",VLOOKUP($D$17,給料表!$F$2:$G$3550,2,0)) ->  | G9: =IF(B9="","",8) -> 
A10: 医療（三） | B10: =IF(入力シート!$B$65="医療（三）",入力シート!$B$65,"") ->  | C10: =IF(B10="","",入力シート!$U$65) ->  | D10: =IF(B10="","",入力シート!$AC$65) ->  | E10: =IF(B10="","",VLOOKUP($D$16,給料表!$B$2:$C$3550,2,0)) ->  | F10: =IF(B10="","",VLOOKUP($D$17,給料表!$F$2:$G$3550,2,0)) ->  | G10: =IF(B10="","",9) -> 
C12: 給料月額 | E12: =MAX(E4:E10) -> 392000 | F12: =MAX(F4:F10) -> 12000
B13: 給与表コード | C13: 級 | D13: 号俸
B14: =SUM(G4:G10) -> 5 | C14: =SUM(C4:C10) -> 3 | D14: =SUM(D4:D10) -> 50
B16: =TEXT(B14,"0")&TEXT(C14,"00")&TEXT(D14,"000") -> 503050 | D16: =B16*1 -> 503050
B17: =TEXT(B14,"0")&TEXT(C14,"00") -> 503 | D17: =B17*1 -> 503
A19: 技能 | B19: =IF(OR(入力シート!U70="",入力シート!AC70=""),"","技能") ->  | C19: =IF(B19="","",入力シート!$U$70) ->  | D19: =IF(B19="","",入力シート!$AC$70) ->  | E19: =IF(B19="","",VLOOKUP($D$25,給料表!B:D,3,0)) ->  | G19: =IF(B19="","",10) -> 
C21: 給料月額 | E21: =IF(E19="","",E19) ->  | F21: =MAX(F19:F19) -> 0
B22: 給与表コード | C22: 級 | D22: 号俸
B23: =G19 ->  | C23: =SUM(C19:C19) -> 0 | D23: =SUM(D19:D19) -> 0
B25: =TEXT(B23,"0")&TEXT(C23,"00")&TEXT(D23,"000") -> 00000 | D25: =B25*1 -> 0

Sheet 給料表 (hidden)
A1: 2023-04-01 | B1: 表級号 | C1: 金額 | E1: 調整額 | F1: 表級 | G1: 金額
A2: 給料表 | B2: 101001 | C2: 163200 | E2: 給料表 | F2: 101 | G2: 6700
B3: 101002 | C3: 164300 | F3: 102 | G3: 8600
B4: 101003 | C4: 165500 | F4: 103 | G4: 9800
B5: 101004 | C5: 166600 | F5: 104 | G5: 10500
B6: 101005 | C6: 167700 | F6: 105 | G6: 10800
B7: 101006 | C7: 168900 | F7: 106 | G7: 11400
B8: 101007 | C8: 170000 | F8: 107 | G8: 12300
B9: 101008 | C9: 171000 | F9: 108 | G9: 13000
B10: 101009 | C10: 172000 | F10: 109 | G10: 14700
B11: 101010 | C11: 173400 | F11: 110 | G11: 16300
B12: 101011 | C12: 174700 | F12: 401 | G12: 9100
B13: 101012 | C13: 176000 | F13: 402 | G13: 11300
B14: 101013 | C14: 177300 | F14: 425 | G14: 11700
B15: 101014 | C15: 178800 | F15: 403 | G15: 12400
B16: 101015 | C16: 180300 | F16: 404 | G16: 13300
B17: 101016 | C17: 181900 | F17: 501 | G17: 8600
B18: 101017 | C18: 183000 | F18: 502 | G18: 11100
B19: 101018 | C19: 184400 | F19: 525 | G19: 11400
B20: 101019 | C20: 185800 | F20: 503 | G20: 12000
B21: 101020 | C21: 187200 | F21: 504 | G21: 12900
B22: 101021 | C22: 188500 | F22: 601 | G22: 8200
B23: 101022 | C23: 190900 | F23: 602 | G23: 9500
B24: 101023 | C24: 193100 | F24: 603 | G24: 11000
B25: 101024 | C25: 195300 | F25: 604 | G25: 11900
B26: 101025 | C26: 197500 | F26: 605 | G26: 14800
B27: 101026 | C27: 199200 | F27: 801 | G27: 6300
B28: 101027 | C28: 200700 | F28: 802 | G28: 8200
B29: 101028 | C29: 202300 | F29: 803 | G29: 9300
B30: 101029 | C30: 203800 | F30: 804 | G30: 9800
B31: 101030 | C31: 205200 | F31: 805 | G31: 10700
B32: 101031 | C32: 206600 | F32: 806 | G32: 11400
B33: 101032 | C33: 208000 | F33: 807 | G33: 12300
B34: 101033 | C34: 209400 | F34: 901 | G34: 8200
B35: 101034 | C35: 210700 | F35: 902 | G35: 9500
B36: 101035 | C36: 212000 | F36: 903 | G36: 9800
B37: 101036 | C37: 213400 | F37: 904 | G37: 10200
B38: 101037 | C38: 214700 | F38: 905 | G38: 10600
B39: 101038 | C39: 215900 | F39: 906 | G39: 11800
B40: 101039 | C40: 217100
B41: 101040 | C41: 218200
B42: 101041 | C42: 219300
B43: 101042 | C43: 220400
B44: 101043 | C44: 221400
B45: 101044 | C45: 222400
B46: 101045 | C46: 223300
B47: 101046 | C47: 224200
B48: 101047 | C48: 225100
B49: 101048 | C49: 226000
B50: 101049 | C50: 226800
B51: 101050 | C51: 227800
B52: 101051 | C52: 228700
B53: 101052 | C53: 229600
B54: 101053 | C54: 230500
B55: 101054 | C55: 231400
B56: 101055 | C56: 232300
B57: 101056 | C57: 233100
B58: 101057 | C58: 233400
B59: 101058 | C59: 234200
B60: 101059 | C60: 234900
B61: 101060 | C61: 235500
B62: 101061 | C62: 236100
B63: 101062 | C63: 236800
B64: 101063 | C64: 237400
B65: 101064 | C65: 237900
B66: 101065 | C66: 238400
B67: 101066 | C67: 238900
B68: 101067 | C68: 239400
B69: 101068 | C69: 240000
B70: 101069 | C70: 240500
B71: 101070 | C71: 241000
B72: 101071 | C72: 241600
B73: 101072 | C73: 242000
B74: 101073 | C74: 242500
B75: 101074 | C75: 243000
B76: 101075 | C76: 243500
B77: 101076 | C77: 244000
B78: 101077 | C78: 244500
B79: 101078 | C79: 245000
B80: 101079 | C80: 245500
B81: 101080 | C81: 246200
B82: 101081 | C82: 246600
B83: 101082 | C83: 246700
B84: 101083 | C84: 247200
B85: 101084 | C85: 247700
B86: 101085 | C86: 248100
B87: 101086 | C87: 248500
B88: 101087 | C88: 248900
B89: 101088 | C89: 249300
B90: 101089 | C90: 249700
B91: 101090 | C91: 250200
B92: 101091 | C92: 250500
B93: 101092 | C93: 250800
B94: 101093 | C94: 251200
B95: 102001 | C95: 209400
B96: 102002 | C96: 211100
B97: 102003 | C97: 212800
B98: 102004 | C98: 214400
B99: 102005 | C99: 215900
B100: 102006 | C100: 217700
B101: 102007 | C101: 219400
B102: 102008 | C102: 221100
B103: 102009 | C103: 222600
B104: 102010 | C104: 224100
B105: 102011 | C105: 225600
B106: 102012 | C106: 227100
B107: 102013 | C107: 228300
B108: 102014 | C108: 229800
B109: 102015 | C109: 231200
B110: 102016 | C110: 232600
B111: 102017 | C111: 234000
B112: 102018 | C112: 235600
B113: 102019 | C113: 237100
B114: 102020 | C114: 238500
B115: 102021 | C115: 239800
B116: 102022 | C116: 241300
B117: 102023 | C117: 242800
B118: 102024 | C118: 244200
B119: 102025 | C119: 245300
B120: 102026 | C120: 246800
B121: 102027 | C121: 248100
B122: 102028 | C122: 249300
B123: 102029 | C123: 250400
B124: 102030 | C124: 251400
B125: 102031 | C125: 252300
B126: 102032 | C126: 253200
B127: 102033 | C127: 254100
B128: 102034 | C128: 255000
B129: 102035 | C129: 255800
B130: 102036 | C130: 256600
B131: 102037 | C131: 257300
B132: 102038 | C132: 258500
B133: 102039 | C133: 259700
B134: 102040 | C134: 260800
B135: 102041 | C135: 262000
B136: 102042 | C136: 263200
B137: 102043 | C137: 264300
B138: 102044 | C138: 265400
B139: 102045 | C139: 266500
B140: 102046 | C140: 267600
B141: 102047 | C141: 268700
B142: 102048 | C142: 269800
B143: 102049 | C143: 270800
B144: 102050 | C144: 271300
B145: 102051 | C145: 272400
B146: 102052 | C146: 273500
B147: 102053 | C147: 274400
B148: 102054 | C148: 275400
B149: 102055 | C149: 276400
B150: 102056 | C150: 277300
B151: 102057 | C151: 278200
B152: 102058 | C152: 279100
B153: 102059 | C153: 280100
B154: 102060 | C154: 280900
B155: 102061 | C155: 281900
B156: 102062 | C156: 282900
B157: 102063 | C157: 283800
B158: 102064 | C158: 284700
B159: 102065 | C159: 285200
B160: 102066 | C160: 286000
B161: 102067 | C161: 286700
B162: 102068 | C162: 287600
B163: 102069 | C163: 288600
B164: 102070 | C164: 289400
B165: 102071 | C165: 290200
B166: 102072 | C166: 291000
B167: 102073 | C167: 291700
B168: 102074 | C168: 292200
B169: 102075 | C169: 292600
B170: 102076 | C170: 293000
B171: 102077 | C171: 293100
B172: 102078 | C172: 293500
B173: 102079 | C173: 293700
B174: 102080 | C174: 294000
B175: 102081 | C175: 294200
B176: 102082 | C176: 294400
B177: 102083 | C177: 294700
B178: 102084 | C178: 294900
B179: 102085 | C179: 295200
B180: 102086 | C180: 295500
B181: 102087 | C181: 295800
B182: 102088 | C182: 296100
B183: 102089 | C183: 296400
B184: 102090 | C184: 296800
B185: 102091 | C185: 297100
B186: 102092 | C186: 297500
B187: 102093 | C187: 297600
B188: 102094 | C188: 297800
B189: 102095 | C189: 298200
B190: 102096 | C190: 298600
B191: 102097 | C191: 298800
B192: 102098 | C192: 299100
B193: 102099 | C193: 299500
B194: 102100 | C194: 299900
B195: 102101 | C195: 300100
B196: 102102 | C196: 300400
B197: 102103 | C197: 300800
B198: 102104 | C198: 301100
B199: 102105 | C199: 301300
B200: 102106 | C200: 301600
... 3350 more rows

Sheet 計算シート (hidden)
A1: 条例改正に伴う退職手当額試算シート | K1: ver3.0
M2: 自己都合
A3: １．H３０.３.３１に退職した場合 | M3: 定年・勧奨
D5: 年齢(H30.3.31) | F5: ※１勤続年数 | H5: ※２給料月額(現在) | K5: =MAX(H6:H9) -> 399500 | L5: =IF(入力シート!#REF!=0,1251000,入力シート!#REF!) -> 
D6: =入力シート!#REF! ->  | F6: =入力シート!AW43 -> 34 | H6: =入力シート!BG74 -> 399500 | J6: 新条例 | K6: =IF(F9=1,VLOOKUP($F$6,'H30.4.1'!A5:C50,3,FALSE),VLOOKUP($F$6,'H30.4.1'!A5:C50,2,FALSE)) -> 46.83015 | L6: =SUM(K5*K6)+L5 -> 
D8: 退職区分 | H8: 退職手当上の給料月額
D9: =入力シート!B13 -> 定年扱い | F9: =IF(D9="自己都合",1,2) -> 2 | H9: =IF(AND($D$9="定年",F6>24),H6*VLOOKUP(D6,#REF!,2,FALSE),H6) -> 399500
D13: 給料月額 | F13: 支給割合 | H13: 調整額 | J13: 退職手当額
D14: =H6 -> 399500 | E14: × | F14: =K6 -> 46.83015 | G14: ＋ | H14: =入力シート!$BD$127+入力シート!$BD$143 -> 1690800 | I14: ＝ | J14: =INT(D14*F14)+H14 -> 20399444
D16: ※１） 育児休業、休職等の期間を除いた年数
D18: １年未満の端数は切り捨て 例）３５年６月 →３５年 （私たちの福利厚生 ６７頁参照）
D20: ※２） 本俸 ＋教職調整額 ＋ 給料の調整額 （ 私たちの福利厚生 ６６頁参照）
D22: 本俸額は給料表上の月額（現給補償額を含まない額）
A27: １．H２７.３.３１に退職した場合
D29: 年齢(H26.3.31) | F29: 勤続年数 | H29: ※給料月額 | J29: ※２給料月額 | M29: =MAX(H30:H34) ->  | N29: =IF(入力シート!#REF!=0,1251000,入力シート!#REF!) -> 
D30: =D6+1 ->  | F30: =F6+1 -> 35 | H30: =H6 -> 399500 | J30: =#REF! ->  | L30: 現条例 | M30: =IF(F34=1,VLOOKUP(F30,'H30.4.1'!A6:C73,3,FALSE),VLOOKUP(F30,'H30.4.1'!A6:C73,2,FALSE)) ->  | N30: =IFERROR(SUM(M29*M30)+N29,0) -> 0
D31: ＋１歳 | F31: ＋１年 | H31: 昇給は考慮しない | M31: =MAX(J30:J34) -> 
L32: 旧条例 | M32: =IF(F6<=8,0,IF(F34=1,VLOOKUP(#REF!,A6:C75,3,FALSE),VLOOKUP(#REF!,A6:C75,2,FALSE))) ->  | N32: =SUM(M31*M32) -> 
D33: 退職区分 | H33: 加算後の給料月額 | J33: 退職手当上の給料月額
D34: =IF(入力シート!#REF!="",入力シート!B13,入力シート!#REF!) ->  | F34: =IF(D34="自己都合",1,2) ->  | H34: =IF(F30>24,H30*VLOOKUP(D30,#REF!,2,FALSE)) ->  | J34: =IF(D30=60,J30,IF(F30-7>24,J30*VLOOKUP(D30-7,#REF!,2,FALSE))) -> 
D37: 給料月額 | F37: 支給割合 | H37: 調整額 | J37: 退職手当額
D38: =IF(N30>N32,M29,M31) ->  | E38: × | F38: =IF(N30>N32,M30,M32) ->  | G38: ＋ | H38: =IF(N32>N30,0,IF(入力シート!#REF!=0,1251000,入力シート!#REF!)) ->  | I38: ＝ | J38: =IFERROR(INT(D38*F38)+H38,"") -> 
A42: ３．おおよその差額
H44: =J38-J14 ->  | I44: 円

Sheet Sheet1 (hidden)
B2: 行政職給料表が適用されている者
B3: 退職時前５年間の号俸を確認してください。
B4: 例１）退職時前５年間 ２級 である。
B5: 第10号区分に ６０月 と入力します。
B6: 例２）退職時より３年前に４級に昇給し、それ以前は３級であった。
B7: 第9号区分に ２４月（２年間）、第8号区分に ３６月（３年間）と入力します。
B9: 教職職給料表(一)(二)が適用されている者
B10: 校長職にある者・・・第５号区分に ６０月 と入力
B11: 副校長職にある者・・・第６号区分に ６０月 と入力
B12: 教頭職にある者・・・第７号区分に ６０月 と入力
B13: 特２級の者・・・第８号区分に ６０月 と入力
B14: ２級の者のうち，勤続期間が１０年以上２６年未満の者・・・第９号区分に ６０月 と入力
B15: ２級の者のうち，勤続期間が２６年以上３５年未満の者・・・第８号区分に ６０月 と入力
B16: ２級の者のうち，勤続期間が３５年以上の者・・・第７号区分に３６月、第８号区分に２４月と入力
B17: １級又は２級の者・・・第１０号区分に ６０月 と入力
B30: 〇休職 〇停職 〇大学院修学休業 〇育児休業 | D30: 月の初日から末日まで勤務しない月が１月以上あったときは、その月数の２分の１ （例）休職期間 平成２５年２月１４日～平成２６年２月１３日の場合 平成２５年３月 ～ 平成２６年１月までの １１月×１/２＝５．５月が除算となる ※ただし、育児休業の場合は、当該育児休業に係る子が１歳に達した日の属する月まで の期間については、その月数の３分の１
B34: 〇高齢者部分休業の期間 | D34: ７時間４５分をもって１時間とし、３０日をもって１月として換算した月数の２分の１
B36: 〇組合専従の期間 〇自己啓発等休業 〇配偶者同行休業 | D36: 月の初日から末日まで勤務しない月が１月以上あったときは、その月数の全部の月数 ※ただし、自己啓発等休業のうち、公務運営に特に資するものと認められること等要件に 該当する場合は、その月数の２分の１

Sheet Sheet2 (hidden)
A1: 次年度 調整額計算
B3: 前年度a
C4: 4号 | D4: ５号 | E4: ６号 | F4: 7号 | G4: 8号 | H4: 9号 | I4: 10号 | J4: 合計
C5: =入力シート!#REF! ->  | D5: =入力シート!#REF! ->  | E5: =入力シート!#REF! ->  | F5: =入力シート!#REF! ->  | G5: =入力シート!#REF! ->  | H5: =入力シート!#REF! ->  | I5: =入力シート!#REF! ->  | J5: =SUM(C5:I5) ->  | K5: =IF(J5<60,J5+12,J5) -> 
B6: a＋12 | C6: =IF(C5>0,C5+12,C5) ->  | D6: =IF(D5>0,D5+12,D5) ->  | E6: =IF(AND(D5=0,E5>0),E5+12,E5) ->  | F6: =IF(AND(E5=0,F5>0),F5+12,F5) ->  | G6: =IF(AND(F5=0,G5>0),G5+12,G5) ->  | H6: =IF(AND(G5=0,H5>0),H5+12,H5) ->  | I6: =IF(AND(H5=0,I5>0),I5+12,I5) -> 
C7: =IF(C6>60,60,C6) -> 
B8: a-12 | C8: =C5-12 -> 
C9: 1 | D9: 2 | E9: 3 | F9: 4 | G9: 5 | H9: 6 | I9: 7
B10: 1 | C10: =$C$7 ->  | D10: =IF(AND(C5=0),$D$7,D5) ->  | E10: =IF(AND(C5=0,D5=0),$E$7,E5) ->  | F10: =IF(AND(C5=0,D5=0,E5=0),$F$7,F5) ->  | G10: =IF(AND(D5=0,E5=0,F5=0,C5=0),$G$7,G5) ->  | H10: =IF(AND(C5=0,E5=0,F5=0,G5=0,D5=0),$H$7,H5) ->  | I10: =IF(I$8<0,I$6-I$6,I$6-12) ->  | J10: =SUM(C10:I10) ->  | K10: 1
B11: 2 | D11: =D10 ->  | E11: =E10 ->  | F11: =F10 ->  | G11: =$G$7 ->  | H11: =IF(H$8<0,0,H$5-12) ->  | I11: 0 | K11: 2
B12: 3 | D12: =D11 ->  | E12: =E10 ->  | F12: =F10 ->  | G12: =IF(G$8<0,0,IF(OR(H5>0,I5>0,J5>0),60-D5-E5-F5-C5,G6)) ->  | H12: 0 | I12: 0 | K12: 3
B13: 4 | D13: =D12 ->  | E13: =E10 ->  | F13: =IF(F$8<0,0,IF(OR(G5>0,H5>0,I5>0),60-C6-D6-E6,F8)) ->  | G13: 0 | H13: 0 | I13: 0 | K13: 4
B14: 5 | D14: =D13 ->  | E14: =IF(E$8<0,0,IF(OR(F5>0,G5>0,H5>0,I4>0),60-C6-D6,E8)) ->  | F14: 0 | G14: 0 | H14: 0 | I14: 0 | K14: 5
B15: 6 | D15: =IF(D$6<0,0,IF(OR(E5>0,F5>0,G4>0,H5>0),60-C6,D8)) ->  | E15: 0 | F15: 0 | G15: 0 | H15: 0 | I15: 0 | K15: 6
B16: 7 | C16: =IF(C$8<0,C$6-C$6,C$6-12) ->  | D16: 0 | E16: 0 | F16: 0 | G16: 0 | H16: 0 | I16: 0 | K16: 7
C18: =MATCH(K5,J10:J16,0) -> 
B19: 次年度の調整月額
C20: 4号 | D20: ５号 | E20: ６号 | F20: 7号 | G20: 8号 | H20: 9号 | I20: 10号
C21: =IFERROR(VLOOKUP($C$18,$B$10:$I$16,2,FALSE),0) -> 0 | D21: =IFERROR(VLOOKUP($C$18,$B$10:$I$16,3,FALSE),0) -> 0 | E21: =IFERROR(VLOOKUP($C$18,$B$10:$I$16,4,FALSE),0) -> 0 | F21: =IFERROR(VLOOKUP($C$18,$B$10:$I$16,5,FALSE),0) -> 0 | G21: =IFERROR(VLOOKUP($C$18,$B$10:$I$16,6,FALSE),0) -> 0 | H21: =IFERROR(VLOOKUP($C$18,$B$10:$I$16,7,FALSE),0) -> 0 | I21: =IFERROR(VLOOKUP($C$18,$B$10:$I$16,8,FALSE),0) -> 0

Sheet Sheet3 (hidden)
A15: ※ | B15: 退職手当の給料月額 | E15: ＝ | F15: 本俸（給料表の月額） | I15: ＋ | J15: 教職調整額 | L15: ＋ | M15: 給料の調整額
L16: （福利厚生ハンドブック 27貢参照）
B18: 本俸 | D18: ・・・・・ | E18: 給料表上の月額です。
B20: 教職調整額 | D20: ・・・・・ | E20: 県立：副校長・教頭 ７，７００円、小中学校：副校長・教頭 ７，５００円、教諭 給料表上の月額×4％
B22: 給料の調整額 | D22: ・・・・・ | E22: 特別支援学校（学級）に従事する教員が該当します。調整基本額×1.00（給与テキスト参照）

Sheet 除算 (hidden)
B1: 除算１ | F1: 除算２
B3: 休職 | C3: 2 | F3: 休職 | G3: 2
B4: 停職 | C4: 2 | F4: 停職 | G4: 2
B5: 大学院修学 | C5: 2 | F5: 大学院修学 | G5: 2
B6: 育休 | C6: 3 | F6: 育休 | G6: 2
B7: 育短勤務 | C7: 3 | F7: 育短勤務 | G7: 3
B8: 高齢者部分休業 | C8: 2 | F8: 高齢者部分休業 | G8: 2
B9: 組合専従 | C9: 1 | F9: 組合専従 | G9: 1
B10: 自己啓発 | C10: 1 | F10: 自己啓発 | G10: 1
B11: 配偶者同行休業 | C11: 1 | F11: 配偶者同行休業 | G11: 1

Sheet H30.4.1 (hidden)
F1: 新支給率
D2: 新
B3: 勧奨 | C3: 自己都合 | G3: 1985-03-31 | H3: =DATEVALUE(G3) -> 
A4: 年 数
A5: 0 | C5: 0
A6: 1 | B6: 0.837 | C6: 0.5022
A7: 2 | B7: 1.674 | C7: 1.0044
A8: 3 | B8: 2.511 | C8: 1.5066
A9: 4 | B9: 3.348 | C9: 2.0088
A10: 5 | B10: 4.185 | C10: 2.511
A11: 6 | B11: 5.022 | C11: 3.0132
A12: 7 | B12: 5.859 | C12: 3.5154
A13: 8 | B13: 6.696 | C13: 4.0176
A14: 9 | B14: 7.533 | C14: 4.5198
A15: 10 | B15: 8.37 | C15: 5.022
A16: 11 | B16: 11.613375 | C16: 7.43256
A17: 12 | B17: 12.76425 | C17: 8.16912
A18: 13 | B18: 13.915125 | C18: 8.90568
A19: 14 | B19: 15.066 | C19: 9.64224
A20: 15 | B20: 16.216875 | C20: 10.3788
A21: 16 | B21: 17.890875 | C21: 12.88143
A22: 17 | B22: 19.564875 | C22: 14.08671
A23: 18 | B23: 21.238875 | C23: 15.29199
A24: 19 | B24: 22.912875 | C24: 16.49727
A25: 20 | B25: 24.586875 | C25: 19.6695
A26: 21 | B26: 26.260875 | C26: 21.3435
A27: 22 | B27: 27.934875 | C27: 23.0175
A28: 23 | B28: 29.608875 | C28: 24.6915
A29: 24 | B29: 31.282875 | C29: 26.3655
A30: 25 | B30: 33.27075 | C30: 28.0395
A31: 26 | B31: 34.77735 | C31: 29.3787
A32: 27 | B32: 36.28395 | C32: 30.7179
A33: 28 | B33: 37.79055 | C33: 32.0571
A34: 29 | B34: 39.29715 | C34: 33.3963
A35: 30 | B35: 40.80375 | C35: 34.7355
A36: 31 | B36: 42.31035 | C36: 35.7399
A37: 32 | B37: 43.81695 | C37: 36.7443
A38: 33 | B38: 45.32355 | C38: 37.7487
A39: 34 | B39: 46.83015 | C39: 38.7531
A40: 35 | B40: 47.709 | C40: 39.7575
A41: 36 | B41: 47.709 | C41: 40.7619
A42: 37 | B42: 47.709 | C42: 41.7663
A43: 38 | B43: 47.709 | C43: 42.7707
A44: 39 | B44: 47.709 | C44: 43.7751
A45: 40 | B45: 47.709 | C45: 44.7795
A46: 41 | B46: 47.709 | C46: 45.7839
A47: 42 | B47: 47.709 | C47: 46.7883
A48: 43 | B48: 47.709 | C48: 47.709
A49: 44 | B49: 47.709 | C49: 47.709
A50: 45 | B50: 47.709 | C50: 47.709

Sheet 育休特殊事例入力方法 (hidden)
B1: 育児休業から復帰後、再度、同一の子の育児休業を取得した場合について
B4: 入力シートの除算期間の子の誕生日欄は、行毎に子の誕生日が異なることを想定していますので、
B5: 期間を空けて同じ子の育児休業を取得した場合は、正しく計算されない事があります。
B6: その場合は、お手数をおかけしますが下記のとおり入力してください。
B8: ①子どもの１歳の誕生日を越えて、１回目の育児休業を取得した場合
B9: ※１歳の誕生日：H23.5.26
C21: ２回目の育児休業の、子の誕生日欄は「２回目の育児休業の開始日の１年前の日」を
C22: 入力してください。 １／２の除算率で計算されます。
B24: ②子どもの１歳の誕生日よりも前に１回目の育児休業が終了した場合
B25: ※１歳の誕生日：H23.5.26
C37: この場合は子の誕生日をそのまま入力してください。
C38: １歳に達した日の属する月までは１／３、 以後は１／２の除算率で計算されます。
B40: 同じ子について再度育児休業を取得した場合は、最初の育児休業の期間が子どもの１歳の誕生日よりも前に終了したかどうかで、子の誕生日欄を入力してください。
